bitfinex/quotes_BTCUSD_20250530
["timestamp","ask_amount","ask_price","bid_price","bid_amount"]
[1748611559710,0.13368436,105520.0,105490.0,0.3564]
[1748611559933,0.13368436,105520.0,105490.0,0.3574]
[1748611560161,0.12420812,105520.0,105490.0,0.3574]
[1748611560383,0.13368445,105520.0,105490.0,0.3564]
[1748611560623,0.12420812,105520.0,105490.0,0.3564]
[1748611560891,0.2085106,105510.0,105490.0,0.002]
[1748611561126,0.00947786,105500.0,105490.0,0.001]
[1748611561353,0.30904338,105510.0,105490.0,0.001]
[1748611561577,0.1055948,105500.0,105490.0,0.002]
[1748611561791,0.1055948,105500.0,105490.0,0.001]
[1748611562256,0.1055948,105500.0,105490.0,0.002]
[1748611562477,0.1214948,105500.0,105490.0,0.001]
[1748611562697,0.1214948,105500.0,105470.0,0.04160076]
[1748611562945,0.1214948,105500.0,105480.0,0.0163]
[1748611563168,0.0165,105510.0,105490.0,0.0163]
[1748611563398,0.10755395,105510.0,105490.0,0.0163]
[1748611563852,0.09105395,105510.0,105490.0,0.0317]
[1748611564066,0.45369811,105520.0,105500.0,0.0152]
[1748611564298,0.54475206,105520.0,105500.0,0.0152]
[1748611564506,0.20612109,105520.0,105500.0,0.0152]
[1748611565152,0.22202109,105520.0,105500.0,0.0152]
[1748611565388,0.22402109,105520.0,105500.0,0.0152]
[1748611565602,0.23349724,105520.0,105500.0,0.0152]
[1748611565817,0.23549715,105520.0,105500.0,0.0152]
[1748611566249,0.23563135,105520.0,105500.0,0.0152]
[1748611566475,0.22602109,105520.0,105500.0,0.0152]
[1748611566727,0.23549715,105520.0,105500.0,0.0152]
[1748611566958,0.11906714,105520.0,105500.0,0.0152]
[1748611567183,0.01794714,105520.0,105510.0,0.0163]
[1748611568073,0.01594714,105520.0,105510.0,0.0163]
[1748611568515,0.01694714,105520.0,105510.0,0.032]
[1748611568993,0.02094714,105520.0,105510.0,0.032]
[1748611574067,0.01694714,105520.0,105510.0,0.032]
[1748611574481,0.01694714,105520.0,105510.0,0.12305395]
[1748611574747,0.01394714,105520.0,105510.0,0.46542308]
[1748611574961,0.01394714,105520.0,105510.0,1.00239638]
[1748611575404,0.01394714,105520.0,105510.0,0.96456944]
[1748611575671,0.01394714,105520.0,105510.0,0.97404721]
[1748611575901,0.01394714,105520.0,105510.0,0.46305395]
[1748611576571,0.01394714,105520.0,105510.0,0.56505395]
[1748611578641,0.01394714,105520.0,105510.0,1.10439638]
[1748611580953,0.01394714,105520.0,105510.0,1.30342946]
[1748611581169,0.01394714,105520.0,105510.0,1.30342964]
[1748611581386,0.01394714,105520.0,105510.0,1.31290732]
[1748611581828,0.01394714,105520.0,105510.0,1.30342964]
[1748611582047,0.01394714,105520.0,105510.0,1.31290732]
[1748611582260,0.01394714,105520.0,105510.0,1.10439638]
[1748611582948,0.01394714,105520.0,105510.0,1.11387415]
[1748611583158,0.01394714,105520.0,105510.0,1.10739638]
[1748611583399,0.01394714,105520.0,105510.0,1.10939638]
[1748611583903,0.01394714,105520.0,105510.0,0.46805395]
[1748611584115,0.01394714,105520.0,105510.0,0.12805395]
[1748611587901,0.01394714,105520.0,105510.0,0.0213]
[1748611588136,0.02994714,105520.0,105510.0,0.005]
[1748611588875,0.01394714,105520.0,105510.0,0.005]
[1748611589350,0.01394714,105520.0,105510.0,0.0201]
[1748611589813,0.03004714,105520.0,105510.0,0.005]
[1748611592810,0.01394714,105520.0,105510.0,0.005]
[1748611593704,0.03014714,105520.0,105510.0,0.005]
[1748611594812,0.03014714,105520.0,105510.0,0.003]
[1748611595029,0.03014714,105520.0,105510.0,0.004]
[1748611595453,0.03014714,105520.0,105510.0,0.001]
[1748611595684,0.04468799,105520.0,105510.0,0.001]
[1748611595926,0.71199171,105520.0,105510.0,0.001]
[1748611596139,0.72347136,105520.0,105510.0,0.001]
[1748611596326,0.52445697,105520.0,105510.0,0.002]
[1748611596584,0.53393366,105520.0,105510.0,0.002]
[1748611596812,0.02994085,105510.0,105490.0,0.0158]
[1748611601167,0.0163,105500.0,105480.0,0.0151]
[1748611601402,0.00947894,105490.0,105470.0,0.3561]
[1748611601632,0.02567876,105490.0,105470.0,0.0161]
[1748611601857,0.0162,105490.0,105470.0,0.0161]
[1748611602595,0.028456,105490.0,105480.0,0.0171]
[1748611602818,0.10188,105500.0,105490.0,0.0165]
[1748611603036,0.14487385,105500.0,105490.0,0.0165]
[1748611603688,0.14487385,105500.0,105480.0,0.0321]
[1748611604191,0.14487385,105500.0,105480.0,0.0331]
[1748611604873,0.14487385,105500.0,105480.0,0.0321]
[1748611605967,0.14687385,105500.0,105480.0,0.0321]
[1748611606209,0.15635171,105500.0,105480.0,0.0321]
[1748611606435,0.16237385,105500.0,105480.0,0.0165]
[1748611606642,0.16037385,105500.0,105480.0,0.0165]
[1748611607582,0.04299385,105500.0,105490.0,0.0165]
[1748611608490,0.05949385,105500.0,105480.0,0.0157]
[1748611608710,0.04299385,105500.0,105480.0,0.0307]
[1748611609168,0.04299385,105500.0,105490.0,0.0157]
[1748611609382,0.04499385,105500.0,105490.0,0.0157]
[1748611610053,0.04299385,105500.0,105490.0,0.0157]
[1748611610929,0.04499385,105500.0,105490.0,0.0157]
[1748611612107,0.04699385,105500.0,105480.0,0.015]
[1748611612330,0.04699385,105500.0,105480.0,0.0301]
[1748611612987,0.04499385,105500.0,105480.0,0.0301]
[1748611613204,0.04299385,105500.0,105480.0,0.0301]
[1748611614347,0.08090637,105500.0,105480.0,0.0301]
[1748611614570,0.17748165,105500.0,105480.0,0.0151]
[1748611615231,0.18695987,105500.0,105480.0,0.0151]
[1748611615714,0.16800361,105500.0,105480.0,0.0151]
[1748611617006,0.17748165,105500.0,105480.0,0.0151]
[1748611617231,0.15852566,105500.0,105480.0,0.0151]
[1748611617487,0.04299385,105500.0,105490.0,0.0151]
[1748611617752,0.45088357,105510.0,105500.0,0.0151]
[1748611618012,0.22138495,105510.0,105500.0,0.0151]
[1748611618228,0.470331,105510.0,105500.0,0.0151]
[1748611618449,0.10188,105510.0,105500.0,0.0301]
[1748611618686,0.11808,105510.0,105500.0,0.0301]
[1748611619187,0.0162,105510.0,105500.0,0.0301]
[1748611619412,0.002,105510.0,105500.0,0.015]
[1748611619852,0.002,105510.0,105500.0,0.0311]
[1748611620350,0.002,105510.0,105500.0,0.12215395]
[1748611620799,0.004,105510.0,105500.0,0.12215395]
[1748611621232,0.002,105510.0,105500.0,0.12215395]
[1748611622130,0.01394714,105520.0,105500.0,0.09105395]
[1748611622353,0.01394714,105520.0,105510.0,0.0314]
[1748611624123,0.01594714,105520.0,105510.0,0.0314]
[1748611624347,0.01794714,105520.0,105510.0,0.0314]
[1748611624830,0.01794714,105520.0,105510.0,0.0162]
[1748611625287,0.01794714,105520.0,105510.0,0.0326]
[1748611632015,0.01794714,105520.0,105510.0,1.6379779]
[1748611632016,0.00234714,105520.0,105510.0,1.6379779]
[1748611632241,0.00234714,105520.0,105510.0,0.46365395]
[1748611632465,0.00234714,105520.0,105510.0,0.22657395]
[1748611632694,0.00234714,105520.0,105510.0,0.12365395]
[1748611632920,0.00034714,105520.0,105510.0,0.12365395]
[1748611633389,0.15162011,105550.0,105520.0,0.0153]
[1748611633616,0.24272304,105550.0,105520.0,0.0153]
[1748611633835,0.26276031,105550.0,105520.0,0.0153]
[1748611634492,0.25397608,105550.0,105520.0,0.0153]
[1748611634721,0.26275966,105550.0,105520.0,0.0153]
[1748611634937,0.25150662,105550.0,105520.0,0.0153]
[1748611635147,0.25150622,105550.0,105520.0,0.03529448]
[1748611635378,0.11768621,105550.0,105520.0,0.016]
[1748611635630,0.03526238,105570.0,105550.0,0.23883156]
[1748611635852,0.00494106,105590.0,105570.0,0.0154]
[1748611636077,0.00494106,105590.0,105570.0,0.21984732]
[1748611636300,0.15292,105600.0,105570.0,0.22348231]
[1748611636527,0.24397395,105600.0,105580.0,0.0164]
[1748611636762,0.15292,105600.0,105580.0,0.0164]
[1748611637022,0.09105395,105590.0,105570.0,0.03403499]
[1748611637244,0.01454085,105580.0,105550.0,0.12215395]
[1748611637470,0.35454085,105580.0,105550.0,0.10715395]
[1748611637694,0.35454085,105580.0,105570.0,0.001]
[1748611637922,0.34,105580.0,105570.0,0.0176]
[1748611638149,0.10292,105590.0,105570.0,0.0319]
[1748611638621,0.3904901,105600.0,105580.0,0.0165]
[1748611638855,0.0504901,105600.0,105590.0,0.07551088]
[1748611639080,0.0504901,105600.0,105590.0,0.3879767]
[1748611639318,0.0504901,105600.0,105590.0,0.50983761]
[1748611639551,0.0504901,105600.0,105590.0,0.3879767]
[1748611640664,0.0504901,105600.0,105570.0,0.55423133]
[1748611640931,0.0504901,105600.0,105590.0,0.001]
[1748611641370,0.0504901,105600.0,105590.0,0.002]
[1748611641819,0.0504901,105600.0,105590.0,0.001]
[1748611642036,0.06503095,105600.0,105590.0,0.001]
[1748611642556,0.1560849,105600.0,105590.0,0.001]
[1748611642783,0.15595934,105600.0,105590.0,0.001]
[1748611643208,0.15595934,105600.0,105570.0,0.0336]
[1748611643640,0.15595934,105600.0,105570.0,0.0306]
[1748611643862,0.18438634,105600.0,105570.0,0.0306]
[1748611644073,0.18538634,105600.0,105570.0,0.0306]
[1748611644293,0.18638634,105600.0,105580.0,0.07551088]
[1748611644512,0.18638634,105600.0,105580.0,0.09091088]
[1748611644746,0.18638634,105600.0,105580.0,0.10661088]
[1748611644965,0.18538634,105600.0,105580.0,0.10661088]
[1748611646309,0.18438634,105600.0,105580.0,0.10661088]
[1748611646525,0.18438634,105600.0,105580.0,0.10761088]
[1748611646748,0.05036454,105600.0,105580.0,0.28164033]
[1748611646963,0.05036454,105600.0,105590.0,0.0158]
[1748611647194,0.05036454,105600.0,105590.0,0.0314]
[1748611647455,0.05036454,105600.0,105590.0,0.22081187]
[1748611648333,0.05236454,105600.0,105590.0,0.22081187]
[1748611649479,0.05236454,105600.0,105590.0,0.0314]
[1748611650165,0.05236454,105600.0,105590.0,0.22081187]
[1748611650385,0.05236454,105600.0,105590.0,0.31186582]
[1748611650612,0.05236454,105600.0,105590.0,0.32133641]
[1748611650830,0.05236454,105600.0,105590.0,0.31186582]
[1748611651045,0.05236454,105600.0,105590.0,0.32133641]
[1748611651265,0.05236454,105600.0,105590.0,0.31186582]
[1748611651705,0.05136454,105600.0,105590.0,0.31186582]
[1748611652149,0.05136454,105600.0,105570.0,0.0322]
[1748611652375,0.05136454,105600.0,105570.0,0.12325395]
[1748611652627,0.05136454,105600.0,105570.0,0.3127006]
[1748611652628,0.05036454,105600.0,105570.0,0.3127006]
[1748611653101,0.06490539,105600.0,105590.0,0.001]
[1748611653317,0.07363848,105600.0,105570.0,0.3127006]
[1748611653527,0.06490539,105600.0,105590.0,0.002]
[1748611654452,0.60405421,105600.0,105570.0,0.3127006]
[1748611654662,0.53814882,105590.0,105570.0,0.3127006]
[1748611655102,0.06590539,105600.0,105570.0,0.3127006]
[1748611655320,0.53814882,105590.0,105570.0,0.3127006]
[1748611655793,0.06690539,105600.0,105570.0,0.3127006]
[1748611656001,0.53814882,105590.0,105570.0,0.3127006]
[1748611656213,0.53814882,105590.0,105570.0,0.31270051]
[1748611656447,0.53814882,105590.0,105570.0,0.31470051]
[1748611656654,0.53814882,105590.0,105570.0,0.31670051]
[1748611657118,0.53814882,105590.0,105570.0,0.31270051]
[1748611657545,0.53814882,105590.0,105570.0,0.31670051]
[1748611659038,0.54690154,105590.0,105570.0,0.31670051]
[1748611659258,0.54690153,105590.0,105570.0,0.31670051]
[1748611659496,0.54690153,105590.0,105570.0,0.0362]
[1748611659497,0.54690335,105590.0,105570.0,0.0362]
[1748611659714,0.54690335,105590.0,105570.0,0.004]
[1748611659715,0.53814882,105580.0,105570.0,0.004]
[1748611660386,0.54690986,105580.0,105570.0,0.004]
[1748611660607,0.65250395,105580.0,105570.0,0.002]
[1748611660880,0.6809465,105580.0,105550.0,0.0315]
[1748611661102,0.53814882,105560.0,105550.0,0.0315]
[1748611661545,0.14279819,105580.0,105550.0,0.0315]
[1748611661764,0.53814882,105570.0,105560.0,0.015]
[1748611661976,0.54692021,105570.0,105560.0,0.015]
[1748611662455,0.546923,105570.0,105560.0,0.015]
[1748611662671,0.00877417,105570.0,105560.0,0.015]
[1748611662903,0.54692299,105570.0,105560.0,0.015]
[1748611663343,0.53814882,105570.0,105560.0,0.015]
[1748611663555,0.53914882,105570.0,105560.0,0.015]
[1748611663764,0.54892338,105570.0,105560.0,0.015]
[1748611664442,0.54893606,105570.0,105550.0,0.0161]
[1748611664690,0.53814882,105560.0,105550.0,0.0323]
[1748611664908,0.0087866,105560.0,105550.0,0.0323]
[1748611665553,0.00878661,105560.0,105550.0,0.0323]
[1748611666227,0.54693306,105560.0,105550.0,0.0333]
[1748611666449,0.53814882,105560.0,105550.0,0.0333]
[1748611666664,0.54693115,105560.0,105550.0,0.0333]
[1748611666883,0.53814882,105560.0,105550.0,0.0333]
[1748611667098,0.54693069,105560.0,105550.0,0.0333]
[1748611667341,0.54693067,105560.0,105550.0,0.0333]
[1748611667559,0.54693058,105560.0,105550.0,0.0333]
[1748611668026,0.53814882,105560.0,105550.0,0.0333]
[1748611668249,0.54693057,105560.0,105550.0,0.0333]
[1748611668929,0.54693044,105560.0,105550.0,0.0333]
[1748611669181,0.54693043,105560.0,105550.0,0.0172]
[1748611669413,0.00878283,105560.0,105550.0,0.001]
[1748611669665,0.01777156,105560.0,105550.0,0.001]
[1748611669960,0.00898873,105560.0,105550.0,0.001]
[1748611670189,0.01777061,105560.0,105550.0,0.001]
[1748611670419,0.01777059,105560.0,105550.0,0.001]
[1748611670657,0.00878255,105560.0,105550.0,0.032]
[1748611670893,0.00878274,105560.0,105550.0,0.0168]
[1748611671124,0.00878309,105560.0,105550.0,0.0168]
[1748611671355,0.0087831,105560.0,105550.0,0.0168]
[1748611671583,0.00878311,105560.0,105550.0,0.0326]
[1748611672077,0.45893553,105580.0,105550.0,0.0326]
[1748611672304,0.13725746,105580.0,105560.0,0.0312]
[1748611672579,0.42478547,105580.0,105560.0,0.0312]
[1748611673012,0.42478547,105580.0,105560.0,0.0153]
[1748611673229,0.42478428,105580.0,105560.0,0.0153]
[1748611673657,0.41600225,105580.0,105560.0,0.0153]
[1748611673868,0.42578467,105580.0,105560.0,0.0153]
[1748611674086,0.42578461,105580.0,105560.0,0.0153]
[1748611674295,0.41700225,105580.0,105560.0,0.0153]
[1748611674499,0.42578384,105580.0,105560.0,0.0153]
[1748611674980,0.42578389,105580.0,105560.0,0.0153]
[1748611675213,0.42578381,105580.0,105560.0,0.0153]
[1748611675444,0.42634711,105580.0,105560.0,0.0153]
[1748611675933,0.42734711,105580.0,105560.0,0.0153]
[1748611677303,0.43612789,105580.0,105560.0,0.0153]
[1748611677580,0.42734561,105580.0,105560.0,0.0153]
[1748611677795,0.11082162,105580.0,105570.0,0.07551088]
[1748611678016,0.1075948,105580.0,105570.0,0.07551088]
[1748611678464,0.11638116,105580.0,105570.0,0.07551088]
[1748611678684,0.11538105,105580.0,105570.0,0.07551088]
[1748611678906,0.11438105,105580.0,105570.0,0.07551088]
[1748611679113,0.11938105,105580.0,105570.0,0.07551088]
[1748611679328,0.11938865,105580.0,105570.0,0.07551088]
[1748611679560,0.1105948,105580.0,105570.0,0.07551088]
[1748611679779,0.12837545,105580.0,105570.0,0.07551088]
[1748611680464,0.12837545,105580.0,105570.0,0.10721088]
[1748611680465,0.01379459,105580.0,105570.0,0.10721088]
[1748611680709,0.005,105580.0,105570.0,0.30150483]
[1748611681936,0.003,105580.0,105570.0,0.30150483]
[1748611682174,0.001,105580.0,105570.0,0.30030483]
[1748611682400,0.002,105580.0,105570.0,0.30030483]
[1748611682632,0.002,105580.0,105570.0,0.64030483]
[1748611683332,0.002,105580.0,105570.0,0.82975258]
[1748611683587,0.002,105580.0,105570.0,0.8486968]
[1748611683821,0.002,105580.0,105570.0,0.84869689]
[1748611684942,0.002,105580.0,105570.0,0.84869707]
[1748611685447,0.001,105580.0,105570.0,0.858169]
[1748611685908,0.04987444,105600.0,105590.0,0.0322]
[1748611686128,0.05036454,105600.0,105590.0,0.0322]
[1748611686609,0.05036454,105600.0,105590.0,0.12325395]
[1748611688436,0.05036454,105600.0,105590.0,0.22649395]
[1748611688890,0.05036454,105600.0,105590.0,0.22749395]
[1748611689782,0.41369675,105640.0,105600.0,0.3713]
[1748611690000,0.09105395,105630.0,105600.0,0.3554]
[1748611690219,0.09105395,105630.0,105610.0,0.0313]
[1748611690685,0.09105395,105630.0,105610.0,0.0159]
[1748611691417,0.09105395,105630.0,105610.0,0.0313]
[1748611691931,0.09305395,105630.0,105610.0,0.0313]
[1748611692598,0.09605395,105630.0,105610.0,0.0313]
[1748611694222,0.005,105630.0,105610.0,0.0313]
[1748611695158,0.003,105630.0,105610.0,0.0313]
[1748611695380,0.38069419,105640.0,105610.0,0.0313]
[1748611695619,0.001,105630.0,105620.0,0.0162]
[1748611696058,0.002,105630.0,105620.0,0.0319]
[1748611696296,0.001,105630.0,105620.0,0.0319]
[1748611696526,0.00014696,105640.0,105620.0,0.0157]
[1748611696756,0.00114696,105640.0,105630.0,0.0328]
[1748611697265,0.00014696,105640.0,105630.0,0.0328]
[1748611697977,0.00114696,105640.0,105630.0,0.0328]
[1748611698199,0.00014696,105640.0,105630.0,0.0328]
[1748611698648,0.00414696,105640.0,105630.0,0.0328]
[1748611699337,0.00014696,105640.0,105630.0,0.0328]
[1748611699866,0.00114696,105640.0,105630.0,0.0328]
[1748611700088,0.00214696,105640.0,105630.0,0.12385395]
[1748611700538,0.00214696,105640.0,105630.0,1.29555545]
[1748611700783,0.00214696,105640.0,105630.0,1.32184119]
[1748611701016,0.00014696,105640.0,105630.0,1.32184119]
[1748611701242,0.00014696,105640.0,105630.0,1.29555545]
[1748611701477,0.00014696,105640.0,105630.0,1.7200163]
[1748611701709,0.00014696,105640.0,105630.0,0.97717395]
[1748611701952,0.00014696,105640.0,105630.0,0.87277395]
[1748611702403,0.00014696,105640.0,105630.0,0.87577395]
[1748611703524,0.00014696,105640.0,105630.0,0.87877395]
[1748611709369,0.00014696,105640.0,105630.0,0.46985395]
[1748611709600,0.00014696,105640.0,105630.0,0.12985395]
[1748611710290,0.00014696,105640.0,105630.0,0.13222039]
[1748611711766,0.00014696,105640.0,105630.0,0.20773127]
[1748611711995,0.00014696,105640.0,105630.0,0.20536483]
[1748611712574,0.00014696,105640.0,105630.0,0.12985395]
[1748611713502,0.00014696,105640.0,105630.0,0.39470497]
[1748611713727,0.00014696,105640.0,105630.0,0.52180483]
[1748611713967,0.00014696,105640.0,105630.0,0.78629395]
[1748611714650,0.00014696,105640.0,105630.0,0.46985395]
[1748611714879,0.00014696,105640.0,105630.0,0.23421395]
[1748611715597,0.00014696,105640.0,105630.0,0.12985395]
[1748611715825,0.00014696,105640.0,105630.0,0.23421395]
[1748611716730,0.00014696,105640.0,105630.0,0.12985395]
[1748611716957,0.00014696,105640.0,105630.0,0.23658028]
[1748611717181,0.00014696,105640.0,105630.0,0.23421395]
[1748611717883,0.00014696,105640.0,105630.0,0.57421395]
[1748611719029,0.00014696,105640.0,105630.0,0.58368086]
[1748611719254,0.00014696,105640.0,105630.0,0.57421395]
[1748611719913,0.00014696,105640.0,105630.0,0.83906497]
[1748611720136,0.00014696,105640.0,105630.0,1.40591545]
[1748611720364,0.00014696,105640.0,105630.0,1.81471545]
[1748611721990,0.00014696,105640.0,105630.0,1.5733649]
[1748611722204,0.00014696,105640.0,105630.0,1.87063188]
[1748611722426,0.00014696,105640.0,105630.0,1.8895649]
[1748611723182,0.00014696,105640.0,105630.0,1.89903136]
[1748611723429,0.00014696,105640.0,105630.0,1.88956498]
[1748611723679,0.00014696,105640.0,105630.0,1.89903136]
[1748611724788,0.00014696,105640.0,105630.0,1.794121]
[1748611725011,0.00014696,105640.0,105630.0,1.82252057]
[1748611725231,0.00014696,105640.0,105630.0,1.38402773]
[1748611725460,0.00014696,105640.0,105630.0,1.80350782]
[1748611725675,0.00014696,105640.0,105630.0,1.81297446]
[1748611725895,0.00014696,105640.0,105630.0,1.80350782]
[1748611726106,0.00014696,105640.0,105630.0,1.27959395]
[1748611726322,0.00014696,105640.0,105630.0,1.48786773]
[1748611726552,0.00014696,105640.0,105630.0,1.49733437]
[1748611726787,0.00014696,105640.0,105630.0,1.50680092]
[1748611727015,0.00014696,105640.0,105630.0,1.49733437]
[1748611727675,0.02654634,105670.0,105660.0,0.0319]
[1748611727901,0.01754571,105670.0,105660.0,0.12531964]
[1748611728111,0.01754581,105670.0,105660.0,0.12531964]
[1748611728360,0.01754589,105670.0,105660.0,0.12295395]
[1748611728591,0.01754385,105670.0,105660.0,0.12531965]
[1748611728805,0.01754385,105670.0,105660.0,0.22915965]
[1748611729018,0.01854385,105670.0,105660.0,0.22679395]
[1748611729243,0.01074914,105670.0,105660.0,0.41608034]
[1748611729465,0.01074914,105670.0,105660.0,0.22679395]
[1748611729713,0.01074914,105670.0,105660.0,0.23634499]
[1748611731466,0.01074914,105670.0,105660.0,0.25572308]
[1748611735929,0.01074914,105670.0,105660.0,0.24022308]
[1748611736156,0.01074914,105670.0,105660.0,0.25672308]
[1748611738404,0.01074914,105670.0,105660.0,0.13638308]
[1748611738856,0.01074914,105670.0,105660.0,0.15228308]
[1748611739079,0.01074914,105670.0,105660.0,0.11998308]
[1748611740456,0.01074914,105670.0,105660.0,0.15344886]
[1748611740896,0.01074914,105670.0,105660.0,0.15108308]
[1748611741133,0.01074914,105670.0,105660.0,0.15344886]
[1748611741795,0.01074914,105670.0,105660.0,0.15108308]
[1748611742940,0.00974914,105670.0,105660.0,0.15108308]
[1748611743412,0.00974914,105670.0,105660.0,0.15208308]
[1748611744076,0.00874914,105670.0,105660.0,0.15208308]
[1748611744517,0.00874914,105670.0,105660.0,0.15308308]
[1748611746539,0.00874914,105670.0,105660.0,0.15544862]
[1748611746999,0.00874914,105670.0,105660.0,0.15308308]
[1748611747925,0.00874914,105670.0,105660.0,0.49544863]
[1748611748189,0.00874914,105670.0,105660.0,0.49308308]
[1748611755191,0.00874914,105670.0,105660.0,0.59756308]
[1748611756510,0.00874914,105670.0,105660.0,0.49308308]
[1748611756727,0.01755601,105670.0,105660.0,0.002]
[1748611756941,0.03275595,105670.0,105660.0,0.002]
[1748611757399,0.03296934,105670.0,105660.0,0.002]
[1748611757616,0.03275573,105670.0,105660.0,0.002]
[1748611757829,0.03275579,105670.0,105660.0,0.002]
[1748611758266,0.01755579,105670.0,105660.0,0.002]
[1748611758522,0.01755579,105670.0,105660.0,0.12455395]
[1748611758743,0.00874914,105670.0,105660.0,0.12455395]
[1748611760064,0.00874914,105670.0,105660.0,0.12691948]
[1748611760765,0.00874914,105670.0,105660.0,0.12455395]
[1748611762214,0.00874914,105670.0,105660.0,0.14303839]
[1748611762656,0.00874914,105670.0,105660.0,0.002]
[1748611762881,0.02994914,105670.0,105660.0,0.002]
[1748611763106,0.03337261,105670.0,105660.0,0.002]
[1748611763332,0.04777906,105670.0,105660.0,0.002]
[1748611763599,0.03897261,105670.0,105660.0,0.002]
[1748611763851,0.03337261,105670.0,105660.0,0.002]
[1748611764296,0.04217878,105670.0,105660.0,0.002]
[1748611764520,0.04217879,105670.0,105660.0,0.002]
[1748611764750,0.02434914,105670.0,105660.0,0.002]
[1748611765004,0.03315532,105670.0,105660.0,0.002]
[1748611765217,0.02434914,105670.0,105660.0,0.002]
[1748611765471,0.66481241,105670.0,105620.0,0.0028002]
[1748611765707,0.0156,105640.0,105620.0,0.09400111]
[1748611765943,0.0156,105640.0,105620.0,0.00014696]
[1748611766173,0.05947078,105650.0,105620.0,0.09120091]
[1748611766399,0.03938787,105650.0,105620.0,0.09120091]
[1748611766637,0.03982889,105650.0,105620.0,0.09120091]
[1748611766918,0.05876349,105650.0,105620.0,0.09520091]
[1748611767134,0.14981744,105650.0,105620.0,0.00414696]
[1748611767352,0.15928229,105650.0,105620.0,0.00014696]
[1748611767566,0.15081744,105650.0,105620.0,0.00014696]
[1748611767788,0.14134751,105650.0,105620.0,0.00014696]
[1748611768022,0.13188293,105650.0,105620.0,0.00014696]
[1748611768495,0.001,105650.0,105630.0,0.10791088]
[1748611768795,0.002,105650.0,105630.0,0.19896483]
[1748611769014,0.002,105650.0,105630.0,0.18266483]
[1748611769470,0.001,105650.0,105630.0,0.18266483]
[1748611769925,0.002,105650.0,105630.0,0.18266483]
[1748611770372,0.002,105650.0,105630.0,0.10715395]
[1748611770373,0.005,105650.0,105630.0,0.10715395]
[1748611770860,0.005,105650.0,105620.0,0.03244696]
[1748611771095,0.005,105650.0,105620.0,0.1258675]
[1748611771319,0.005,105650.0,105620.0,0.12350091]
[1748611771320,0.0206,105650.0,105620.0,0.12350091]
[1748611771994,0.0176,105650.0,105620.0,0.12350091]
[1748611772213,0.0156,105650.0,105620.0,0.12350091]
[1748611772404,0.0166,105650.0,105620.0,0.12350091]
[1748611773789,0.0176,105650.0,105620.0,0.12350091]
[1748611775161,0.0232,105650.0,105620.0,0.12350091]
[1748611775379,0.0156,105640.0,105620.0,0.09120091]
[1748611775835,0.0156,105640.0,105620.0,0.00014696]
[1748611776049,0.02652898,105650.0,105620.0,0.00014696]
[1748611776239,0.13318293,105650.0,105620.0,0.00014696]
[1748611776772,0.13218293,105650.0,105620.0,0.00014696]
[1748611777214,0.001,105640.0,105620.0,0.00014696]
[1748611777437,0.001,105640.0,105620.0,0.01534696]
[1748611777660,0.13218293,105650.0,105620.0,0.01534696]
[1748611777878,0.14164769,105650.0,105620.0,0.01534696]
[1748611778094,0.13218293,105650.0,105620.0,0.01534696]
[1748611778553,0.001,105640.0,105620.0,0.01534696]
[1748611779198,0.13218293,105650.0,105620.0,0.01534696]
[1748611779417,0.1416476,105650.0,105620.0,0.01534696]
[1748611779662,0.13318293,105650.0,105620.0,0.01534696]
[1748611779898,0.14164778,105650.0,105620.0,0.03044696]
[1748611780131,0.14064778,105650.0,105620.0,0.03044696]
[1748611780351,0.0165,105640.0,105620.0,0.01534696]
[1748611781017,0.0155,105640.0,105620.0,0.01534696]
[1748611781449,0.0165,105640.0,105620.0,0.01534696]
[1748611781683,0.0259653,105640.0,105620.0,0.01534696]
[1748611781913,0.0259653,105640.0,105620.0,0.00014696]
[1748611782130,0.0165,105640.0,105620.0,0.00014696]
[1748611782353,0.0221,105640.0,105620.0,0.00014696]
[1748611782594,0.03156539,105640.0,105620.0,0.00014696]
[1748611783041,0.001,105640.0,105620.0,0.03401375]
[1748611783788,0.002,105640.0,105620.0,0.03164696]
[1748611784455,0.002,105640.0,105620.0,0.01771366]
[1748611784667,0.002,105640.0,105630.0,0.0163]
[1748611785533,0.002,105640.0,105630.0,0.0317]
[1748611785753,0.001,105640.0,105630.0,0.0317]
[1748611786187,0.003,105640.0,105630.0,0.0317]
[1748611786835,0.002,105640.0,105630.0,0.0317]
[1748611787291,0.005,105640.0,105630.0,0.0317]
[1748611789059,0.01381793,105640.0,105630.0,0.0317]
[1748611789498,0.01381831,105640.0,105630.0,0.0317]
[1748611789710,0.01381833,105640.0,105630.0,0.0317]
[1748611790174,0.01381842,105640.0,105630.0,0.0317]
[1748611790835,0.01381842,105640.0,105630.0,0.0163]
[1748611791058,0.005,105640.0,105620.0,0.01654696]
[1748611791299,0.01381687,105640.0,105620.0,0.13556696]
[1748611791554,0.01381693,105640.0,105620.0,0.13556696]
[1748611791779,0.01381687,105640.0,105620.0,0.13556696]
[1748611791997,0.01081687,105640.0,105620.0,0.13556696]
[1748611792210,0.01081692,105640.0,105620.0,0.13793366]
[1748611792428,0.00981691,105640.0,105620.0,0.13793366]
[1748611792653,0.01081691,105640.0,105620.0,0.13793366]
[1748611792870,0.002,105640.0,105620.0,0.13793366]
[1748611793088,0.01081681,105640.0,105620.0,0.13793366]
[1748611793297,0.01081685,105640.0,105620.0,0.13793366]
[1748611793750,0.01081689,105640.0,105620.0,0.13556696]
[1748611793988,0.01081693,105640.0,105620.0,0.13556696]
[1748611794205,0.0108169,105640.0,105620.0,0.13556696]
[1748611794867,0.01982229,105640.0,105620.0,0.03284696]
[1748611795084,0.03542239,105640.0,105620.0,0.01644696]
[1748611795344,0.01982236,105640.0,105620.0,0.03234696]
[1748611795576,0.01100539,105640.0,105620.0,0.03234696]
[1748611796022,0.01982231,105640.0,105620.0,0.03234696]
[1748611796684,0.0198224,105640.0,105620.0,0.03234696]
[1748611797118,0.01982262,105640.0,105620.0,0.03234696]
[1748611797329,0.01982252,105640.0,105620.0,0.03234696]
[1748611797540,0.01982254,105640.0,105620.0,0.03234696]
[1748611797759,0.01100539,105640.0,105620.0,0.03234696]
[1748611797978,0.01982273,105640.0,105620.0,0.03234696]
[1748611798193,0.01982274,105640.0,105620.0,0.03234696]
[1748611798616,0.01100539,105640.0,105620.0,0.03234696]
[1748611798844,0.01982266,105640.0,105620.0,0.03234696]
[1748611799339,0.01982267,105640.0,105620.0,0.03234696]
[1748611799990,0.01982287,105640.0,105620.0,0.03234696]